bitfinex-derivatives/quotes_BTCF0:USTF0_20250222
["timestamp","ask_amount","ask_price","bid_price","bid_amount"]
[1740265189715,0.21878157,96688.0,96687.0,0.0308]
[1740265190507,0.21678157,96688.0,96687.0,0.0308]
[1740265190710,0.21878157,96688.0,96687.0,0.0308]
[1740265191524,0.21778157,96688.0,96687.0,0.0308]
[1740265191819,0.26907028,96688.0,96687.0,0.0308]
[1740265193117,0.26807028,96688.0,96687.0,0.2376489]
[1740265193420,0.26907028,96688.0,96687.0,0.2376489]
[1740265195920,0.21878157,96688.0,96687.0,0.0308]
[1740265196315,0.21878157,96688.0,96687.0,0.2376489]
[1740265200527,0.21878157,96688.0,96687.0,0.0308]
[1740265200716,0.21878157,96688.0,96687.0,0.2376489]
[1740265200917,0.21878157,96688.0,96687.0,0.0308]
[1740265202031,0.21878157,96688.0,96687.0,0.2376489]
[1740265202427,0.21678157,96688.0,96687.0,0.0308]
[1740265202732,0.21878157,96688.0,96687.0,0.0308]
[1740265205235,0.26907027,96688.0,96687.0,0.0308]
[1740265205940,0.26707027,96688.0,96687.0,0.0308]
[1740265206129,0.2068596,96682.0,96681.0,0.18618039]
[1740265206329,0.5776596,96682.0,96681.0,0.18618039]
[1740265206934,0.01048985,96691.0,96681.0,0.18618039]
[1740265207128,0.0512887,96688.0,96682.0,0.0301]
[1740265207436,0.2168574,96683.0,96682.0,0.0301]
[1740265208025,0.2168574,96683.0,96682.0,0.2369562]
[1740265208026,0.01,96683.0,96682.0,0.2369562]
[1740265208227,0.2168574,96683.0,96682.0,0.2369562]
[1740265208636,0.2168574,96683.0,96682.0,0.3353562]
[1740265209737,0.2178574,96683.0,96682.0,0.3353562]
[1740265210623,0.37292428,96683.0,96682.0,0.3353562]
[1740265212435,0.37292428,96683.0,96682.0,0.1285]
[1740265212628,0.37392428,96683.0,96682.0,0.3353596]
[1740265212824,0.37392428,96683.0,96682.0,0.1285]
[1740265213137,0.2068638,96680.0,96679.0,0.0308]
[1740265213323,0.2168638,96680.0,96679.0,0.0308]
[1740265213523,0.2470638,96680.0,96679.0,0.0308]
[1740265216037,0.2480638,96680.0,96679.0,0.0308]
[1740265231641,0.40293717,96680.0,96679.0,0.0308]
[1740265233847,0.206866,96679.0,96678.0,0.00015515]
[1740265234053,0.2068703,96677.0,96676.0,0.00176]
[1740265234253,0.2168703,96677.0,96676.0,0.00176]
[1740265236150,0.2168703,96677.0,96676.0,0.00276]
[1740265244254,0.26716591,96677.0,96676.0,0.00276]
[1740265260480,0.2068895,96668.0,96663.0,0.2068997]
[1740265260681,0.2168895,96668.0,96665.0,0.1291]
[1740265261073,0.22706745,96668.0,96666.0,0.18618039]
[1740265261581,0.02017795,96668.0,96666.0,0.18618039]
[1740265261777,0.2069024,96662.0,96650.0,0.00155187]
[1740265262081,0.2169024,96662.0,96655.0,0.0634]
[1740265262485,0.2169024,96662.0,96655.0,0.37348684]
[1740265262486,0.2500024,96662.0,96655.0,0.37348684]
[1740265262678,0.2069152,96656.0,96655.0,0.37348684]
[1740265262872,0.2169152,96656.0,96655.0,0.37348684]
[1740265263080,0.2489152,96656.0,96655.0,0.37348684]
[1740265263469,0.2449152,96656.0,96655.0,0.37348684]
[1740265264382,0.2439152,96656.0,96655.0,0.34078684]
[1740265265072,0.2449152,96656.0,96655.0,0.34178684]
[1740265265681,0.2449152,96656.0,96655.0,0.31108684]
[1740265265982,0.206928,96650.0,96649.0,0.37251218]
[1740265266180,0.577728,96650.0,96649.0,0.15325666]
[1740265266981,0.3708,96650.0,96641.0,0.2069457]
[1740265267175,0.01,96642.0,96640.0,0.00015515]
[1740265267382,0.2169473,96641.0,96640.0,0.00015515]
[1740265267985,0.22738033,96641.0,96640.0,0.00015515]
[1740265268887,0.22838033,96641.0,96640.0,0.00015515]
[1740265270381,0.22938033,96641.0,96640.0,0.00015515]
[1740265271179,0.59018033,96641.0,96640.0,0.00015515]
[1740265275288,0.22938033,96641.0,96640.0,0.00015515]
[1740265275482,0.59018033,96641.0,96640.0,0.00015515]
[1740265277089,0.22938033,96641.0,96640.0,0.00015515]
[1740265277290,0.59018033,96641.0,96640.0,0.00015515]
[1740265286298,0.22938033,96641.0,96640.0,0.00015515]
[1740265286499,0.59018033,96641.0,96640.0,0.00015515]
[1740265286897,0.74503403,96641.0,96640.0,0.00015515]
[1740265290399,0.64049691,96641.0,96640.0,0.00015515]
[1740265294702,0.27969691,96641.0,96640.0,0.00015515]
[1740265294918,0.64049691,96641.0,96640.0,0.00015515]
[1740265295301,0.27969691,96641.0,96640.0,0.00015515]
[1740265295610,0.64049691,96641.0,96640.0,0.00015515]
[1740265297602,0.76577168,96641.0,96640.0,0.00015515]
[1740265298914,0.76577168,96641.0,96621.0,0.3608]
[1740265298915,0.0517396,96636.0,96621.0,0.3608]
[1740265299212,0.2069752,96628.0,96627.0,0.0329]
[1740265299514,0.2169752,96628.0,96627.0,0.0329]
[1740265300608,0.2179752,96628.0,96627.0,0.0329]
[1740265301703,0.2189752,96628.0,96627.0,0.0329]
[1740265304815,0.26929178,96628.0,96627.0,0.0329]
[1740265311911,0.45514842,96628.0,96627.0,0.0329]
[1740265314928,0.2189752,96628.0,96627.0,0.0329]
[1740265318015,0.012,96628.0,96600.0,0.1]
[1740265318223,0.2169944,96619.0,96618.0,0.25884586]
[1740265318719,0.2169944,96619.0,96618.0,0.00010426]
[1740265319115,0.22737054,96619.0,96618.0,0.00010426]
[1740265319511,0.22737054,96619.0,96618.0,0.20710086]
[1740265319714,0.22837054,96619.0,96618.0,0.20710086]
[1740265319918,0.22837054,96619.0,96618.0,0.00010426]
[1740265320120,0.22837054,96619.0,96618.0,0.20710086]
[1740265320317,0.22837054,96619.0,96618.0,0.00010426]
[1740265320521,0.22937054,96619.0,96618.0,0.00010426]
[1740265321214,0.22837054,96619.0,96618.0,0.00010426]
[1740265321415,0.22937054,96619.0,96618.0,0.00010426]
[1740265321825,0.38423813,96619.0,96618.0,0.20710086]
[1740265322419,0.38423813,96619.0,96618.0,0.00010426]
[1740265323528,0.38423813,96619.0,96618.0,0.20710086]
[1740265323925,0.38423813,96619.0,96618.0,0.00010426]
[1740265324127,0.38423813,96619.0,96618.0,0.20710086]
[1740265324328,0.38423813,96619.0,96618.0,0.00010426]
[1740265324721,0.38423813,96619.0,96618.0,0.20710086]
[1740265325420,0.38423813,96619.0,96618.0,0.00010426]
[1740265326027,0.38423813,96619.0,96618.0,0.20710086]
[1740265326028,0.27969643,96619.0,96618.0,0.20710086]
[1740265326228,0.27969643,96619.0,96618.0,0.00010426]
[1740265327730,0.27969643,96619.0,96618.0,0.20710086]
[1740265328331,0.27969643,96619.0,96618.0,0.00010426]
[1740265328522,0.27969643,96619.0,96618.0,0.20710086]
[1740265328925,0.46553754,96619.0,96618.0,0.00010426]
[1740265331032,0.46553754,96619.0,96618.0,0.20710086]
[1740265332740,0.46553754,96619.0,96618.0,0.00010426]
[1740265334125,0.238167,96619.0,96618.0,0.00010426]
[1740265334332,0.238167,96619.0,96618.0,0.20710086]
[1740265334634,0.248167,96619.0,96618.0,0.20710086]
[1740265334828,0.4551614,96619.0,96618.0,0.20710086]
[1740265336033,0.38838879,96619.0,96618.0,0.20710086]
[1740265338031,0.38838879,96619.0,96618.0,0.00010426]
[1740265339730,0.42098879,96619.0,96618.0,0.00010426]
[1740265340232,0.38838879,96619.0,96618.0,0.00010426]
[1740265342541,0.2189944,96619.0,96618.0,0.00010426]
[1740265350346,0.2189944,96619.0,96618.0,0.20710086]
[1740265350535,0.2189944,96619.0,96618.0,0.00010426]
[1740265353547,0.26931852,96619.0,96618.0,0.00010426]
[1740265354443,0.26931852,96619.0,96618.0,0.03090426]
[1740265357347,0.45515282,96619.0,96618.0,0.03090426]
[1740265362053,0.26931852,96619.0,96618.0,0.03090426]
[1740265365058,0.26931852,96619.0,96618.0,0.00010426]
[1740265367660,0.26931852,96619.0,96618.0,0.20710086]
[1740265368261,0.05232412,96619.0,96618.0,0.20710086]
[1740265368472,0.06232412,96619.0,96618.0,0.20710086]
[1740265368763,0.05232412,96619.0,96618.0,0.20710086]
[1740265369059,0.26931852,96619.0,96618.0,0.20710086]
[1740265370167,0.2189944,96619.0,96618.0,0.20710086]
[1740265374768,0.012,96619.0,96618.0,0.20710086]
[1740265374955,0.002,96619.0,96618.0,0.20710086]
[1740265376166,0.012,96619.0,96618.0,0.20710086]
[1740265376760,0.002,96619.0,96618.0,0.20710086]
[1740265377271,0.012,96619.0,96618.0,0.30726086]
[1740265380668,0.002,96619.0,96618.0,0.30726086]
[1740265380863,0.012,96619.0,96618.0,0.30726086]
[1740265381069,0.002,96619.0,96618.0,0.30726086]
[1740265382278,0.012,96619.0,96618.0,0.30726086]
[1740265391085,0.002,96619.0,96618.0,0.30726086]
[1740265391285,0.012,96619.0,96618.0,0.30726086]
[1740265391585,0.002,96619.0,96618.0,0.30726086]
[1740265391774,0.012,96619.0,96618.0,0.30726086]
[1740265394381,0.2189944,96619.0,96618.0,0.30726086]
[1740265394582,0.012,96619.0,96618.0,0.30726086]
[1740265395473,0.2189944,96619.0,96618.0,0.30726086]
[1740265395876,0.012,96619.0,96618.0,0.30726086]
[1740265396083,0.2189944,96619.0,96618.0,0.30726086]
[1740265397487,0.012,96619.0,96618.0,0.30726086]
[1740265398087,0.2189944,96619.0,96618.0,0.30726086]
[1740265400691,0.0325,96625.0,96624.0,0.2069837]
[1740265400882,0.15505586,96629.0,96624.0,0.3708]
[1740265401189,0.36202906,96629.0,96627.0,0.2069773]
[1740265401382,0.15557587,96629.0,96627.0,0.3068973]
[1740265401582,0.15505586,96629.0,96627.0,0.3389973]
[1740265401781,0.0517421,96632.0,96627.0,0.3389973]
[1740265401782,0.1652111,96628.0,96627.0,0.3389973]
[1740265401981,0.3721863,96628.0,96627.0,0.3389973]
[1740265402494,0.1652111,96628.0,96627.0,0.3389973]
[1740265403082,0.3731863,96628.0,96627.0,0.3389973]
[1740265403282,0.1662111,96628.0,96627.0,0.3389973]
[1740265403587,0.1662111,96628.0,96627.0,0.34919082]
[1740265403891,0.1662111,96628.0,96627.0,0.35019082]
[1740265404292,0.3741863,96628.0,96627.0,0.35219082]
[1740265404488,0.1672111,96628.0,96627.0,0.35219082]
[1740265405386,0.3741863,96628.0,96627.0,0.35219082]
[1740265405594,0.21913044,96628.0,96627.0,0.35219082]
[1740265405795,0.21913044,96628.0,96627.0,0.32009082]
[1740265414691,0.21913044,96628.0,96627.0,0.35029082]
[1740265415999,0.21913044,96628.0,96627.0,0.32009082]
[1740265416402,0.21913044,96628.0,96627.0,1.04169082]
[1740265418192,0.21913044,96628.0,96627.0,0.32009082]
[1740265418393,0.21913044,96628.0,96627.0,1.04169082]
[1740265418803,0.21913044,96628.0,96627.0,0.32009082]
[1740265419097,0.21913044,96628.0,96627.0,1.04169082]
[1740265423707,0.21913044,96628.0,96627.0,1.07199082]
[1740265425298,0.01215524,96628.0,96627.0,1.07199082]
[1740265426998,0.21913044,96628.0,96627.0,1.07199082]
[1740265432505,0.21913044,96628.0,96627.0,0.35039082]
[1740265432902,0.21913044,96628.0,96627.0,1.07199082]
[1740265445420,0.21913044,96628.0,96627.0,1.07127082]
[1740265445817,0.21913044,96628.0,96627.0,1.2204129]
[1740265446022,0.21913044,96628.0,96627.0,1.3195729]
[1740265447127,0.01215524,96628.0,96627.0,1.3195729]
[1740265447934,0.00215524,96628.0,96627.0,1.3195729]
[1740265448127,0.01215524,96628.0,96627.0,1.3195729]
[1740265449446,0.01215524,96628.0,96627.0,1.07123082]
[1740265464258,0.21913044,96628.0,96627.0,1.07123082]
[1740265466958,0.21913044,96628.0,96627.0,0.7246]
[1740265467169,0.21913044,96628.0,96627.0,0.001]
[1740265467458,0.2069837,96624.0,96623.0,0.09680813]
[1740265467764,0.2169837,96624.0,96623.0,0.09680813]
[1740265467957,0.2069944,96619.0,96618.0,0.37215822]
[1740265468157,0.5777944,96619.0,96618.0,0.37159822]
[1740265468351,0.8777944,96619.0,96618.0,0.37159822]
[1740265469661,0.8797944,96619.0,96618.0,0.37159822]
[1740265470252,0.8797944,96619.0,96618.0,0.00010426]
[1740265472367,0.8797944,96619.0,96618.0,6e-08]
[1740265474759,0.93012004,96619.0,96618.0,6e-08]
[1740265476266,0.207033,96601.0,96600.0,0.1]
[1740265476459,0.217033,96601.0,96600.0,0.1996]
[1740265478562,0.219033,96601.0,96600.0,0.1996]
[1740265497883,0.26936749,96601.0,96600.0,0.1996]
[1740265498583,0.26836749,96601.0,96600.0,0.1996]
[1740265498778,0.26936749,96601.0,96600.0,0.1996]
[1740265498978,0.26836749,96601.0,96600.0,0.1996]
[1740265499184,0.26936749,96601.0,96600.0,0.1996]
[1740265504388,0.26936749,96601.0,96600.0,0.1]
[1740265504584,0.26936749,96601.0,96596.0,0.0323]
[1740265504585,0.2070373,96599.0,96596.0,0.0323]
[1740265504785,0.2170373,96599.0,96596.0,0.0323]
[1740265505789,0.2180373,96599.0,96596.0,0.0323]
[1740265507287,0.2190373,96599.0,96596.0,0.0323]
[1740265507584,0.012,96599.0,96585.0,0.00155293]
[1740265507789,0.2170652,96586.0,96585.0,0.00155293]
[1740265508978,0.2180652,96586.0,96585.0,0.00155293]
[1740265510588,0.2190652,96586.0,96585.0,0.00155293]
[1740265511187,0.2180652,96586.0,96585.0,0.00155293]
[1740265511384,0.2170652,96586.0,96585.0,0.00155293]
[1740265513600,0.2170652,96586.0,96579.0,0.2070785]
[1740265513601,0.01,96586.0,96561.0,0.0517795]
[1740265513895,0.2070887,96575.0,96574.0,0.19680813]
[1740265514095,0.2070887,96575.0,96571.0,0.00056]
[1740265514096,0.2070952,96572.0,96571.0,0.00056]
[1740265514285,0.2071166,96562.0,96561.0,0.07129513]
[1740265514490,0.2171166,96562.0,96561.0,0.07129513]
[1740265515091,0.2071166,96562.0,96561.0,0.37522206]
[1740265515291,0.2171166,96562.0,96561.0,0.37522206]
[1740265515684,0.2181166,96562.0,96561.0,0.16810326]
[1740265515891,0.2191166,96562.0,96561.0,0.16810326]
[1740265517997,0.2191166,96562.0,96561.0,0.37522206]
[1740265518197,0.2191166,96562.0,96561.0,0.16810326]
[1740265519197,0.2191166,96562.0,96561.0,0.09680813]
[1740265520692,0.2708958,96562.0,96561.0,0.09680813]
[1740265522403,0.0517839,96554.0,96539.0,0.00155373]
[1740265522702,0.2071638,96540.0,96539.0,0.36235373]
[1740265522900,0.2171638,96540.0,96539.0,0.36235373]
[1740265523201,0.02045268,96540.0,96539.0,0.66632786]
[1740265523505,0.13076357,96556.0,96555.0,0.2071316]
[1740265523803,0.13076357,96556.0,96555.0,0.30393973]
[1740265524002,0.33789307,96556.0,96555.0,0.33443973]
[1740265524200,0.34789307,96556.0,96555.0,0.12730813]
[1740265524400,0.34789307,96556.0,96555.0,0.13134]
[1740265524603,0.34789307,96556.0,96555.0,0.10084]
[1740265524796,0.2071338,96554.0,96553.0,0.3608]
[1740265524997,0.2171338,96554.0,96553.0,0.3608]
[1740265525309,0.2171338,96554.0,96553.0,0.45760813]
[1740265525605,0.2171338,96554.0,96553.0,0.66474403]
[1740265525795,0.2171338,96554.0,96553.0,0.45760813]
[1740265525996,0.2181338,96554.0,96553.0,0.45760813]
[1740265526500,0.2191338,96554.0,96553.0,0.45760813]
[1740265528002,0.2191338,96554.0,96553.0,0.09680813]
[1740265529396,0.002,96554.0,96553.0,0.09680813]
[1740265529597,0.15436941,96562.0,96552.0,0.0847844]
[1740265529802,0.39235189,96567.0,96566.0,0.207108]
[1740265530009,0.39235189,96567.0,96566.0,0.308268]
[1740265530206,0.18524329,96567.0,96566.0,0.308268]
[1740265530707,0.00155397,96574.0,96571.0,0.0517742]
[1740265531009,0.2070669,96586.0,96585.0,0.2070652]
[1740265531309,0.2070669,96586.0,96585.0,0.10136]
[1740265531500,0.2170669,96586.0,96585.0,0.10136]
[1740265532610,0.2170669,96586.0,96581.0,0.3608]
[1740265532611,0.2070737,96582.0,96581.0,0.3608]
[1740265532809,0.5778737,96582.0,96581.0,0.10132]
[1740265533004,0.2070909,96574.0,96572.0,0.2070943]
[1740265533207,0.2170909,96574.0,96573.0,0.46236]
[1740265533600,0.2170909,96574.0,96573.0,0.669453]
[1740265534007,0.2070737,96584.0,96583.0,0.2070694]
[1740265534204,0.2070737,96584.0,96583.0,0.3086694]
[1740265534408,0.2170737,96584.0,96583.0,0.3086694]
[1740265535218,0.2180737,96584.0,96583.0,0.3086694]
[1740265535609,0.2180737,96584.0,96583.0,0.3406694]
[1740265535805,0.2180737,96584.0,96583.0,0.3728694]
[1740265536210,0.2190737,96584.0,96583.0,0.3728694]
[1740265540015,0.2190737,96584.0,96583.0,0.3728716]
[1740265540811,0.2180737,96584.0,96583.0,0.3748716]
[1740265541317,0.2180737,96584.0,96583.0,0.1678]
[1740265541625,0.2180737,96584.0,96583.0,0.3406716]
[1740265541818,0.2170737,96584.0,96583.0,0.3426716]
[1740265542412,0.2170737,96584.0,96583.0,0.3416716]
[1740265542612,0.2170737,96584.0,96583.0,0.7024716]
[1740265543008,0.2170737,96584.0,96583.0,0.4954]
[1740265543208,0.2170737,96584.0,96583.0,0.7024716]
[1740265543418,0.2170737,96584.0,96583.0,0.4954]
[1740265543721,0.2170737,96584.0,96583.0,0.7024716]
[1740265544424,0.2170737,96584.0,96583.0,0.4954]
[1740265544621,0.2170737,96584.0,96583.0,0.7024716]
[1740265545127,0.2170737,96584.0,96583.0,0.4624]
[1740265545422,0.2486737,96584.0,96583.0,0.4634]
[1740265545814,0.2486737,96584.0,96583.0,0.6701116]
[1740265546010,0.2486737,96584.0,96583.0,0.3618]
[1740265546220,0.2486737,96584.0,96583.0,0.46304]
[1740265546613,0.2486737,96584.0,96583.0,0.3618]
[1740265546809,0.2486737,96584.0,96583.0,0.46308]
[1740265547015,0.2486737,96584.0,96583.0,0.46208]
[1740265547323,0.2486737,96584.0,96583.0,0.46308]
[1740265547820,0.2486737,96584.0,96583.0,0.46208]
[1740265549723,0.2486737,96584.0,96583.0,0.3608]
[1740265549924,0.2486737,96584.0,96583.0,0.46224]
[1740265552924,0.2486737,96584.0,96583.0,0.10144]
[1740265554722,0.2789737,96584.0,96583.0,0.10144]
[1740265556327,0.3307371,96584.0,96583.0,0.10132]
[1740265558228,0.3307371,96584.0,96577.0,0.46224]
[1740265558229,0.2070823,96578.0,96577.0,0.46224]
[1740265558526,0.2170823,96578.0,96577.0,0.3608]
[1740265558730,0.2497823,96578.0,96577.0,0.3608]
[1740265559319,0.2071059,96567.0,96559.0,0.0616]
[1740265559519,0.2477059,96567.0,96552.0,0.0327]
[1740265559727,0.2477059,96567.0,96551.0,0.28005404]
[1740265559728,0.6399059,96567.0,96566.0,0.10148]
[1740265560329,0.2791059,96567.0,96566.0,0.10148]
[1740265560736,0.2791059,96567.0,96566.0,0.10548]
[1740265561233,0.2791059,96567.0,96566.0,0.10948]
[1740265562130,0.32945954,96567.0,96566.0,0.10948]
[1740265562725,0.32945954,96567.0,96566.0,0.02745566]
[1740265562923,0.32945954,96567.0,96566.0,0.008]
[1740265566834,0.36165954,96567.0,96566.0,0.008]
[1740265569035,0.3113059,96567.0,96566.0,0.008]
[1740265576444,0.46584824,96567.0,96566.0,0.008]
[1740265584648,0.36165904,96567.0,96566.0,0.008]
[1740265591048,0.36165904,96567.0,96558.0,0.0625]
[1740265591049,0.2071231,96559.0,96558.0,0.0319]
[1740265591250,0.2171231,96559.0,96558.0,0.0319]
[1740265592248,0.2191231,96559.0,96558.0,0.0429]
[1740265595958,0.39702347,96559.0,96558.0,0.0429]
[1740265596754,0.17990037,96559.0,96558.0,0.2500252]
[1740265596954,0.38702347,96559.0,96558.0,0.2500252]
[1740265597254,0.39702347,96559.0,96558.0,0.2500252]
[1740265597650,0.38702347,96559.0,96558.0,0.2500252]
[1740265597958,0.39702347,96559.0,96558.0,0.2500252]
[1740265600251,0.2191231,96559.0,96558.0,0.2500252]
[1740265601762,0.002,96559.0,96558.0,0.6108252]
[1740265601963,0.2191231,96559.0,96558.0,0.6108252]
[1740265602667,0.002,96559.0,96558.0,0.6108252]
[1740265602962,0.012,96559.0,96558.0,0.6108252]
[1740265603367,0.2191231,96559.0,96558.0,0.6108252]
[1740265604267,0.012,96559.0,96558.0,0.6108252]
[1740265604466,0.2191231,96559.0,96558.0,0.6108252]
[1740265607670,0.2191231,96559.0,96558.0,0.62138123]
[1740265608269,0.012,96559.0,96558.0,0.62138123]
[1740265608467,0.002,96559.0,96558.0,0.62138123]
[1740265608660,0.25904512,96568.0,96567.0,0.2071059]
[1740265608858,0.2071231,96559.0,96558.0,0.76502]
[1740265609063,0.2171231,96559.0,96558.0,0.8653]
[1740265609772,0.2141231,96559.0,96558.0,1.0664252]
[1740265610574,0.2151231,96559.0,96558.0,1.0694252]
[1740265612563,0.2151231,96559.0,96558.0,1.0693052]
[1740265614265,0.2151231,96559.0,96558.0,0.3477052]
[1740265614469,0.2151231,96559.0,96558.0,0.7085052]
[1740265615178,0.2151231,96559.0,96558.0,0.7084252]
[1740265618990,0.2151231,96559.0,96558.0,0.4007]
[1740265619297,0.2151231,96559.0,96558.0,0.50118]
[1740265619490,0.2151231,96559.0,96558.0,0.7083052]
[1740265620195,0.2151231,96559.0,96558.0,0.50118]
[1740265620395,0.2151231,96559.0,96558.0,0.7083052]
[1740265620695,0.011,96559.0,96555.0,0.10044]
[1740265620886,0.2171295,96556.0,96555.0,0.10044]
[1740265621294,0.2484295,96556.0,96555.0,0.10044]
[1740265621896,0.2484295,96556.0,96555.0,0.10244]
[1740265622390,0.2484295,96556.0,96555.0,0.10144]
[1740265622591,0.2494295,96556.0,96555.0,0.10344]
[1740265624796,0.40523012,96556.0,96555.0,0.10244]
[1740265625701,0.40523012,96556.0,96555.0,0.002]
[1740265625899,0.40523012,96556.0,96555.0,0.10236]
[1740265627895,0.15680062,96556.0,96555.0,0.3094916]
[1740265628093,0.36393012,96556.0,96555.0,0.3094916]
[1740265628398,0.15680062,96556.0,96555.0,0.3495916]
[1740265628603,0.00072,96575.0,96556.0,0.0517819]
[1740265628805,0.00155369,96576.0,96567.0,0.3708]
[1740265629106,0.00155369,96576.0,96575.0,0.2070887]
[1740265629310,0.00155369,96576.0,96575.0,0.22739791]
[1740265629807,0.20864029,96576.0,96575.0,0.22739791]
[1740265630104,0.2070866,96576.0,96575.0,0.2170887]
[1740265631494,0.01,96580.0,96575.0,0.01]
[1740265631694,0.01,96580.0,96577.0,0.2170845]
[1740265631695,0.50690926,96578.0,96577.0,0.2170845]
[1740265631899,0.50690926,96578.0,96577.0,0.3176445]
[1740265632803,0.2588551,96578.0,96577.0,0.3176445]
[1740265634907,0.2598551,96578.0,96577.0,0.3176445]
[1740265635899,0.2588551,96578.0,96577.0,0.3176445]
[1740265636702,0.01,96580.0,96577.0,0.3176445]
[1740265636703,0.2070807,96579.0,96578.0,0.2588507]
[1740265638408,0.2588475,96581.0,96580.0,0.2588372]
[1740265638607,0.2688475,96581.0,96580.0,0.6196372]
[1740265638809,0.2588475,96581.0,96580.0,0.6196372]
[1740265639007,0.25899342,96585.0,96584.0,0.2070694]
[1740265639208,0.20722622,96585.0,96584.0,0.2070694]
[1740265639801,0.21722622,96585.0,96584.0,0.2070694]
[1740265640002,0.20722622,96585.0,96584.0,0.2070694]
[1740265640210,0.21822622,96585.0,96584.0,0.2070694]
[1740265641110,0.20822622,96585.0,96584.0,0.2070694]
[1740265641306,0.21822622,96585.0,96584.0,0.2070694]
[1740265641510,0.20922622,96585.0,96584.0,0.2070694]
[1740265642299,0.21922622,96585.0,96584.0,0.2070694]
[1740265642505,0.20922622,96585.0,96584.0,0.2070694]
[1740265642805,0.21922622,96585.0,96584.0,0.2070694]
[1740265643712,0.00215532,96585.0,96584.0,0.2070694]
[1740265644112,0.20922262,96585.0,96584.0,0.2070694]
[1740265644514,0.0329,96596.0,96584.0,0.01]
[1740265644819,0.2588098,96595.0,96594.0,0.2070459]
[1740265645019,0.2688098,96595.0,96594.0,0.3410459]
[1740265645313,0.2588098,96595.0,96594.0,0.3410459]
[1740265645521,0.2688098,96595.0,96594.0,0.3410459]
[1740265646619,0.2718098,96595.0,96594.0,0.3410459]
[1740265648221,0.2658098,96595.0,96594.0,0.3410459]
[1740265648405,0.2758098,96595.0,96594.0,0.3410459]
[1740265648609,0.2658098,96595.0,96594.0,0.3410459]
[1740265649110,0.2758098,96595.0,96594.0,0.3410459]
[1740265649518,0.2658098,96595.0,96594.0,0.3410459]
[1740265649720,0.2758098,96595.0,96594.0,0.3410459]
[1740265650312,0.2658098,96595.0,96594.0,0.3410459]
[1740265650512,0.007,96595.0,96594.0,0.3410459]
[1740265651019,0.2140459,96595.0,96594.0,0.3410459]
[1740265651720,0.2240459,96595.0,96594.0,0.3410459]
[1740265652508,0.2140459,96595.0,96594.0,0.3410459]
[1740265653615,0.2240459,96595.0,96594.0,0.3410459]
[1740265658926,0.2140459,96595.0,96594.0,0.3410459]
[1740265659125,0.2240459,96595.0,96594.0,0.3410459]
[1740265668033,0.017,96595.0,96594.0,0.3410459]
[1740265668226,0.007,96595.0,96594.0,0.3410459]
[1740265668834,0.017,96595.0,96594.0,0.3410459]
[1740265671035,0.2240459,96595.0,96594.0,0.3410459]
[1740265671338,0.017,96595.0,96594.0,0.3410459]
[1740265671835,0.2240459,96595.0,96594.0,0.3410459]
[1740265672034,0.017,96595.0,96594.0,0.3410459]
[1740265672235,0.2240459,96595.0,96594.0,0.3410459]
[1740265672630,0.2240459,96595.0,96594.0,0.52684959]
[1740265672631,0.017,96595.0,96594.0,0.52684959]
[1740265672836,0.2240459,96595.0,96594.0,0.52684959]
[1740265673929,0.017,96595.0,96594.0,0.52684959]
[1740265674128,0.2240459,96595.0,96594.0,0.52684959]
[1740265674532,0.017,96595.0,96594.0,0.52684959]
[1740265674932,0.2240459,96595.0,96594.0,0.52684959]
[1740265675133,0.2552459,96595.0,96594.0,0.52684959]
[1740265675533,0.0482,96595.0,96594.0,0.52684959]
[1740265676134,0.2552459,96595.0,96594.0,0.52684959]
[1740265676923,0.2552459,96595.0,96594.0,0.3410459]
[1740265677138,0.2452459,96595.0,96594.0,0.3410459]
[1740265678028,0.2452459,96595.0,96594.0,0.7018459]
[1740265678637,0.0382,96595.0,96594.0,0.7018459]
[1740265678829,0.2452459,96595.0,96594.0,0.7018459]
[1740265679731,0.2552459,96595.0,96594.0,0.7018459]
[1740265680441,0.0382,96595.0,96594.0,0.7018459]
[1740265680937,0.2552459,96595.0,96594.0,0.7018459]
[1740265681543,0.2870459,96595.0,96594.0,0.7018459]
[1740265687034,0.0382,96595.0,96594.0,0.7018459]
[1740265688145,0.2552459,96595.0,96594.0,0.7018459]
[1740265688542,0.0382,96595.0,96594.0,0.95009994]
[1740265688741,0.0482,96595.0,96594.0,0.95009994]
[1740265688935,0.0382,96595.0,96594.0,0.95009994]
[1740265689346,0.0482,96595.0,96594.0,0.95009994]
[1740265689849,0.2552459,96595.0,96594.0,0.95009994]
[1740265690242,0.2552459,96595.0,96594.0,0.58929994]
[1740265690444,0.2552459,96595.0,96594.0,0.95009994]
[1740265690638,0.0482,96595.0,96594.0,0.95009994]
[1740265691035,0.2552459,96595.0,96594.0,0.95009994]
[1740265691841,0.0482,96595.0,96594.0,0.95009994]
[1740265692245,0.2552459,96595.0,96594.0,0.95009994]
[1740265692747,0.0382,96595.0,96594.0,0.7018459]
[1740265692948,0.2552459,96595.0,96594.0,0.7018459]
[1740265693746,0.2452459,96595.0,96594.0,0.7018459]
[1740265693940,0.2552459,96595.0,96594.0,0.3410459]
[1740265694141,0.2552459,96595.0,96594.0,0.7018459]
[1740265694344,0.2552459,96595.0,96594.0,0.3410459]
[1740265694535,0.2552459,96595.0,96594.0,0.7018459]
[1740265694935,0.2552459,96595.0,96594.0,0.3410459]
[1740265695141,0.2552459,96595.0,96594.0,0.7018459]
[1740265696542,0.2552459,96595.0,96594.0,0.3410459]
[1740265696742,0.2552459,96595.0,96594.0,0.7018459]
[1740265697948,0.2452459,96595.0,96594.0,0.7018459]
[1740265699244,0.2552459,96595.0,96594.0,0.7018459]
[1740265699445,0.2452459,96595.0,96594.0,0.7018459]
[1740265699845,0.0382,96595.0,96594.0,0.7018459]
[1740265700051,0.0382,96595.0,96594.0,0.95009994]
[1740265700252,0.2552459,96595.0,96594.0,0.95009994]
[1740265700452,0.2452459,96595.0,96594.0,0.95009994]
[1740265701044,0.2552459,96595.0,96594.0,0.95009994]
[1740265701247,0.2452459,96595.0,96594.0,0.95009994]
[1740265701554,0.2552459,96595.0,96594.0,0.95009994]
[1740265703451,0.2452459,96595.0,96594.0,0.95009994]
[1740265703648,0.0382,96595.0,96594.0,0.96009994]
[1740265703865,0.0631,96601.0,96600.0,0.2070351]
[1740265704056,0.0631,96601.0,96600.0,0.2170351]
[1740265704245,0.270133,96601.0,96600.0,0.2170351]
[1740265705258,0.277133,96601.0,96600.0,0.2170351]
[1740265705852,0.282133,96601.0,96600.0,0.2170351]
[1740265707452,0.277133,96601.0,96600.0,0.2170351]
[1740265707759,0.278133,96601.0,96600.0,0.2170351]
[1740265708149,0.272133,96601.0,96600.0,0.2170351]
[1740265712857,0.272133,96601.0,96600.0,0.46544978]
[1740265717368,0.0651,96601.0,96600.0,0.2170351]
[1740265717567,0.272133,96601.0,96600.0,0.2170351]